bitfinex/quotes_BTCUSD_20250102
["timestamp","ask_amount","ask_price","bid_price","bid_amount"]
[1735856017756,0.46342018,97126.0,97117.0,0.08092052]
[1735856017957,0.46342018,97126.0,96998.0,0.4]
[1735856017958,0.205971,97101.0,97084.0,0.11549857]
[1735856018161,0.205971,97101.0,97086.0,0.10398632]
[1735856018521,0.205971,97101.0,97087.0,0.206]
[1735856018721,0.205971,97101.0,97088.0,0.10398632]
[1735856018921,0.00488378,97100.0,97088.0,0.10398632]
[1735856019179,0.205975,97099.0,97088.0,0.10398632]
[1735856019631,0.00488378,97098.0,97089.0,0.00322317]
[1735856019782,0.205975,97099.0,97090.0,0.10398632]
[1735856020084,0.00488375,97097.0,97091.0,0.00322317]
[1735856020286,0.41195,97099.0,97092.0,0.10398632]
[1735856020486,0.00488375,97096.0,97092.0,0.10398632]
[1735856020738,0.41195,97099.0,97093.0,0.00322317]
[1735856021018,0.41195,97099.0,97094.0,0.10398632]
[1735856021224,0.00488374,97098.0,97094.0,0.10720949]
[1735856021578,0.00488374,97098.0,97095.0,0.00322317]
[1735856021783,0.205979,97097.0,97096.0,0.10398632]
[1735856021997,0.205979,97097.0,97096.0,0.10720949]
[1735856022198,0.00484694,97097.0,97096.0,0.10720949]
[1735856022638,0.205975,97099.0,97096.0,0.10720949]
[1735856022839,0.00484692,97097.0,97096.0,0.10720949]
[1735856023004,0.00484692,97097.0,97096.0,0.10398632]
[1735856023005,0.002,97097.0,97096.0,0.10398632]
[1735856023597,0.00684691,97097.0,97096.0,0.10398632]
[1735856023805,0.002,97097.0,97096.0,0.10720952]
[1735856024001,0.00684691,97097.0,97096.0,0.10729502]
[1735856024400,0.00884691,97097.0,97096.0,0.10729502]
[1735856025219,0.00884691,97097.0,97096.0,0.0033087]
[1735856025423,0.38544691,97097.0,97096.0,0.0033087]
[1735856026208,0.38544691,97097.0,97096.0,8.55e-05]
[1735856026613,0.38344691,97097.0,97096.0,8.55e-05]
[1735856026781,0.38744691,97097.0,97096.0,8.55e-05]
[1735856027616,0.38544691,97097.0,97096.0,8.55e-05]
[1735856028037,0.39144691,97097.0,97096.0,8.55e-05]
[1735856030747,0.38744691,97097.0,97096.0,8.55e-05]
[1735856030917,0.38144691,97097.0,97096.0,8.55e-05]
[1735856031120,0.38744691,97097.0,97096.0,8.55e-05]
[1735856031322,0.39644691,97097.0,97096.0,8.55e-05]
[1735856035207,0.02027585,97097.0,97096.0,8.55e-05]
[1735856035406,0.01498791,97097.0,97096.0,8.55e-05]
[1735856036130,0.01515891,97097.0,97096.0,8.55e-05]
[1735856038119,0.29345891,97097.0,97096.0,8.55e-05]
[1735856039153,0.287471,97097.0,97096.0,8.55e-05]
[1735856039632,0.288471,97097.0,97096.0,8.55e-05]
[1735856040273,0.355981,97096.0,97094.0,5.8e-07]
[1735856040482,0.38228632,97095.0,97094.0,5.8e-07]
[1735856042079,0.38328632,97095.0,97094.0,5.8e-07]
[1735856043287,0.38428632,97095.0,97094.0,5.8e-07]
[1735856049764,0.38445732,97095.0,97094.0,5.8e-07]
[1735856051125,0.280471,97095.0,97094.0,5.8e-07]
[1735856053247,4.194071,97095.0,97094.0,5.8e-07]
[1735856059908,4.29805732,97095.0,97094.0,5.8e-07]
[1735856060273,4.30276989,97095.0,97094.0,5.8e-07]
[1735856061588,0.206024,97076.0,97075.0,0.08062652]
[1735856061935,0.21070858,97076.0,97075.0,0.08062652]
[1735856064108,0.22370858,97076.0,97075.0,0.08062652]
[1735856064678,0.23630499,97076.0,97075.0,0.08062652]
[1735856064814,0.15,97094.0,97075.0,0.08062652]
[1735856065013,3.93442864,97095.0,97075.0,0.08062652]
[1735856065014,0.206024,97076.0,97075.0,0.08062652]
[1735856068066,0.211024,97076.0,97075.0,0.08062652]
[1735856069027,0.2236373,97076.0,97075.0,0.08062652]
[1735856073232,0.2236373,97076.0,97075.0,0.08071202]
[1735856090179,0.2236373,97076.0,97075.0,0.59577202]
[1735856094011,0.2699373,97076.0,97075.0,0.59577202]
[1735856096614,0.36251447,97076.0,97075.0,0.59577202]
[1735856097749,0.2699373,97076.0,97075.0,0.59577202]
[1735856099574,0.36249583,97076.0,97075.0,0.59577202]
[1735856099973,0.51249583,97076.0,97075.0,0.59577202]
[1735856100413,0.69768215,97076.0,97075.0,0.59577202]
[1735856100622,0.95281213,97076.0,97075.0,0.05148119]
[1735856100798,0.485377,97051.0,97050.0,0.03106185]
[1735856101004,0.58936332,97051.0,97050.0,0.03106185]
[1735856101159,0.58936332,97051.0,97049.0,0.03106185]
[1735856101372,0.10398632,97050.0,97049.0,0.03106185]
[1735856102149,0.10413362,97050.0,97049.0,0.03106185]
[1735856102343,0.17086329,97050.0,97049.0,0.01045385]
[1735856102563,0.1501473,97050.0,97049.0,0.01745385]
[1735856102713,0.1501473,97050.0,97049.0,0.01045385]
[1735856102917,0.206115,97033.0,97032.0,0.08546035]
[1735856103125,0.206115,97033.0,97032.0,0.60075035]
[1735856104481,0.46310132,97033.0,97032.0,0.60075035]
[1735856104890,0.46810132,97033.0,97032.0,0.60175035]
[1735856105275,0.46310132,97033.0,97032.0,0.60075035]
[1735856105505,0.46310132,97033.0,97032.0,0.60475035]
[1735856105706,0.46010132,97033.0,97032.0,0.60475035]
[1735856105910,0.46010132,97033.0,97032.0,0.60575035]
[1735856106534,0.46010132,97033.0,97032.0,0.60075035]
[1735856106821,0.46110132,97033.0,97032.0,0.60175035]
[1735856107446,0.64010132,97033.0,97032.0,0.03963363]
[1735856107654,0.356145,97019.0,97018.0,0.0147502]
[1735856108062,0.358679,97019.0,97018.0,0.5301202]
[1735856108308,0.48399878,97019.0,97018.0,0.5301202]
[1735856108515,0.50373515,97019.0,97018.0,0.5301202]
[1735856109134,0.50484132,97019.0,97018.0,0.5371202]
[1735856109569,0.48510495,97019.0,97018.0,0.5371202]
[1735856109987,0.48410495,97019.0,97018.0,0.5301202]
[1735856110201,0.48510495,97019.0,97018.0,0.5311202]
[1735856110420,0.56510495,97019.0,97018.0,0.5311202]
[1735856110626,0.59514116,97019.0,97018.0,0.5301202]
[1735856111055,0.59614116,97019.0,97018.0,0.5311202]
[1735856111268,0.61717861,97019.0,97018.0,0.5381202]
[1735856111475,0.61617861,97019.0,97018.0,0.5311202]
[1735856111909,0.5861424,97019.0,97018.0,0.5381202]
[1735856112315,0.56227494,97019.0,97018.0,0.5381202]
[1735856113271,0.58277552,97019.0,97018.0,0.5381202]
[1735856114043,0.50277552,97019.0,97018.0,0.5381202]
[1735856115750,0.50277552,97019.0,97018.0,0.4968902]
[1735856115957,0.50277552,97019.0,97018.0,0.4762752]
[1735856116135,0.50277552,97019.0,97018.0,0.4556602]
[1735856116272,0.50277552,97019.0,97018.0,0.4144302]
[1735856116727,0.50277552,97019.0,97018.0,0.3938152]
[1735856117039,0.50277552,97019.0,97018.0,0.3319702]
[1735856117340,0.50277552,97019.0,97018.0,0.3113552]
[1735856117764,0.50277552,97019.0,97018.0,0.2495102]
[1735856117968,0.50277552,97019.0,97018.0,0.2288952]
[1735856119210,0.50277552,97019.0,97018.0,0.2082802]
[1735856119621,0.50277552,97019.0,97018.0,0.1671357]
[1735856119779,0.50294652,97019.0,97018.0,0.1259057]
[1735856119978,0.50294652,97019.0,97018.0,0.1052907]
[1735856120181,0.50294652,97019.0,97018.0,0.0640607]
[1735856120182,0.63154652,97019.0,97018.0,0.0640607]
[1735856120820,0.63154652,97019.0,97018.0,0.0434457]
[1735856121387,0.63154652,97019.0,97018.0,0.0228307]
[1735856121702,0.63154652,97019.0,97018.0,7e-07]
[1735856122673,0.58454652,97019.0,97018.0,7e-07]
[1735856126709,0.356168,97008.0,97007.0,7e-07]
[1735856126913,0.46015432,97008.0,97007.0,7e-07]
[1735856127330,0.356171,97007.0,97004.0,0.000103]
[1735856127538,0.46015732,97007.0,97004.0,0.000103]
[1735856127706,0.66632832,97007.0,97004.0,0.000103]
[1735856128313,0.356183,97001.0,97000.0,0.035]
[1735856128521,0.46016932,97001.0,97000.0,0.035]
[1735856129537,0.46116932,97001.0,97000.0,0.035]
[1735856129908,0.48053896,97001.0,97000.0,0.035]
[1735856130310,0.48153896,97001.0,97000.0,0.035]
[1735856130713,0.48253896,97001.0,97000.0,0.035]
[1735856130909,0.48153896,97001.0,97000.0,0.035]
[1735856131341,0.48253896,97001.0,97000.0,0.035]
[1735856133008,0.48253896,97001.0,97000.0,0.0350855]
[1735856135111,0.50314992,97001.0,97000.0,0.0350855]
[1735856135491,0.50214992,97001.0,97000.0,0.0350855]
[1735856137165,0.50114992,97001.0,97000.0,0.0350855]
[1735856137536,0.50214992,97001.0,97000.0,0.0350855]
[1735856139003,0.3981636,97001.0,97000.0,0.1578855]
[1735856139211,0.37755264,97001.0,97000.0,0.1578855]
[1735856140707,0.37855264,97001.0,97000.0,0.1578855]
[1735856141268,0.37755264,97001.0,97000.0,0.1578855]
[1735856141810,0.37655264,97001.0,97000.0,0.1578855]
[1735856142050,0.37755264,97001.0,97000.0,0.1578855]
[1735856142427,0.37855264,97001.0,97000.0,0.1628855]
[1735856142994,0.207183,97001.0,97000.0,0.1578855]
[1735856143341,0.207183,97001.0,97000.0,0.1628855]
[1735856143753,0.207183,97001.0,97000.0,0.1658855]
[1735856143978,0.206183,97001.0,97000.0,0.1578855]
[1735856144337,0.22420441,97003.0,97000.0,0.1578855]
[1735856144542,0.001,97001.0,97000.0,0.1638855]
[1735856145055,0.01802441,97003.0,97000.0,0.0806855]
[1735856145264,0.013,97001.0,97000.0,0.0816855]
[1735856145436,0.013,97001.0,97000.0,0.18567182]
[1735856145575,0.008,97001.0,97000.0,0.18567182]
[1735856145784,0.008,97001.0,97000.0,0.26407182]
[1735856146004,0.013,97001.0,97000.0,0.26407182]
[1735856146207,0.013,97001.0,97000.0,0.77953182]
[1735856146417,0.005,97001.0,97000.0,0.77853182]
[1735856146910,0.005,97001.0,97000.0,0.98471682]
[1735856147374,0.005,97001.0,97000.0,0.98571682]
[1735856147709,0.005,97001.0,97000.0,0.98471682]
[1735856147905,0.013,97001.0,97000.0,1.0040201]
[1735856148137,0.013,97001.0,97000.0,1.0030201]
[1735856148343,0.005,97001.0,97000.0,0.98471682]
[1735856148556,0.012,97001.0,97000.0,0.77953182]
[1735856148755,0.007,97001.0,97000.0,0.77953182]
[1735856149087,0.011,97001.0,97000.0,0.77953182]
[1735856150797,0.011,97001.0,97000.0,0.98571682]
[1735856151647,0.011,97001.0,97000.0,0.77953182]
[1735856153591,0.011,97001.0,97000.0,0.98571682]
[1735856154205,0.011,97001.0,97000.0,0.77953182]
[1735856161717,0.011,97001.0,97000.0,2.27953182]
[1735856163711,0.09237208,97037.0,97009.0,0.1272]
[1735856163916,0.22292841,97029.0,97010.0,0.10398632]
[1735856164151,0.22292841,97029.0,97010.0,0.61939632]
[1735856164698,0.206145,97020.0,97010.0,0.61939632]
[1735856165717,0.207145,97020.0,97010.0,0.61939632]
[1735856165923,0.001,97020.0,97010.0,0.61939632]
[1735856166120,0.001,97020.0,97011.0,0.206162]
[1735856166367,0.001,97020.0,97012.0,0.10398632]
[1735856166562,0.001,97020.0,97012.0,0.61938632]
[1735856167311,0.206137,97023.0,97012.0,0.61938632]
[1735856167506,0.412274,97023.0,97012.0,0.61938632]
[1735856167711,0.001,97020.0,97012.0,0.61938632]
[1735856168074,0.412274,97023.0,97012.0,0.61938632]
[1735856168498,0.412274,97023.0,97012.0,0.62238632]
[1735856168857,0.000171,97020.0,97012.0,0.62238632]
[1735856169472,0.000171,97020.0,97012.0,0.62938632]
[1735856169813,0.206145,97019.0,97012.0,0.62238632]
[1735856170027,0.206145,97019.0,97012.0,0.62338632]
[1735856170233,0.206154,97015.0,97012.0,0.5164]
[1735856170864,0.412308,97015.0,97012.0,0.5154]
[1735856171213,0.412308,97015.0,97012.0,0.5164]
[1735856171451,0.416308,97015.0,97012.0,0.5164]
[1735856171843,0.412308,97015.0,97012.0,0.5164]
[1735856172263,0.415308,97015.0,97012.0,0.5154]
[1735856172641,0.422308,97015.0,97012.0,0.5164]
[1735856173047,0.415308,97015.0,97012.0,0.5154]
[1735856173256,0.421308,97015.0,97012.0,0.5164]
[1735856175365,0.43754293,97015.0,97012.0,0.5164]
[1735856176668,0.0777,97014.0,97012.0,0.5164]
[1735856176845,0.206157,97013.0,97012.0,0.5164]
[1735856177862,0.206157,97013.0,97012.0,0.5194]
[1735856178245,0.206157,97013.0,97012.0,0.5164]
[1735856179011,0.206157,97013.0,97012.0,0.5174]
[1735856179209,0.206157,97013.0,97012.0,0.5164]
[1735856179402,0.206157,97013.0,97012.0,0.5214]
[1735856180586,0.206157,97013.0,97012.0,0.5214855]
[1735856181823,0.206157,97013.0,97012.0,0.4964855]
[1735856184163,0.356157,97013.0,97012.0,0.4964855]
[1735856185316,0.356157,97013.0,97012.0,0.4914855]
[1735856185525,0.357157,97013.0,97012.0,0.5004855]
[1735856186415,0.356157,97013.0,97012.0,0.4914855]
[1735856186596,0.357157,97013.0,97012.0,0.4994855]
[1735856187098,0.358157,97013.0,97012.0,0.5034855]
[1735856187495,0.357157,97013.0,97012.0,0.4994855]
[1735856187695,0.358157,97013.0,97012.0,0.5034855]
[1735856188313,0.45052908,97013.0,97012.0,0.5034855]
[1735856190618,0.358157,97013.0,97012.0,0.5034855]
[1735856191574,0.45052908,97013.0,97012.0,0.5034855]
[1735856193106,0.358157,97013.0,97012.0,0.5034855]
[1735856194208,0.49676747,97013.0,97012.0,0.5034855]
[1735856196757,0.358157,97013.0,97012.0,0.5034855]
[1735856197954,0.49676747,97013.0,97012.0,0.5034855]
[1735856201221,0.358157,97013.0,97012.0,0.5034855]
[1735856204619,0.358328,97013.0,97012.0,0.5034855]
[1735856206345,0.5433334,97013.0,97012.0,0.5034855]
[1735856207090,0.64731972,97013.0,97012.0,0.5034855]
[1735856207422,0.77621972,97013.0,97012.0,0.4004055]
[1735856208411,0.77421972,97013.0,97012.0,0.3874055]
[1735856208619,0.58921432,97013.0,97012.0,0.3914055]
[1735856208852,0.59021432,97013.0,97012.0,0.4004055]
[1735856209058,0.59021432,97013.0,97012.0,0.3964055]
[1735856209437,0.59021432,97013.0,97012.0,0.4004055]
[1735856210142,0.81321432,97013.0,97012.0,0.26511603]
[1735856210938,1.04428012,97013.0,97012.0,0.26511603]
[1735856211338,1.04428012,97013.0,97012.0,0.18853086]
[1735856211552,1.04428012,97013.0,97012.0,0.10601665]
[1735856212112,0.81321432,97013.0,97012.0,0.08540065]
[1735856212311,0.1,97003.0,97000.0,0.03557409]
[1735856212526,0.436583,97001.0,97000.0,0.03557409]
[1735856212721,0.64056932,97001.0,97000.0,0.03557409]
[1735856213019,0.25,96991.0,96950.0,0.09219023]
[1735856213226,0.55738632,96991.0,96990.0,0.01067636]
[1735856213734,0.55738632,96991.0,96990.0,3.6e-07]
[1735856214746,0.55838632,96991.0,96990.0,3.6e-07]
[1735856215610,0.55738632,96991.0,96990.0,3.6e-07]
[1735856215856,0.57846697,96991.0,96990.0,3.6e-07]
[1735856216050,0.3255,96982.0,96947.0,0.21830019]
[1735856216277,0.42948632,96982.0,96947.0,0.21830019]
[1735856218116,0.4447667,96982.0,96947.0,0.21830019]
[1735856218326,0.15,96972.0,96947.0,0.09000019]
[1735856218527,0.206287,96952.0,96947.0,0.09000019]
[1735856219692,0.20677853,96952.0,96951.0,0.0772855]
[1735856219915,0.20777853,96952.0,96951.0,0.0772855]
[1735856220726,0.20777853,96952.0,96951.0,0.1228855]
[1735856221292,0.20877853,96952.0,96951.0,0.1228855]
[1735856222214,0.20877853,96952.0,96951.0,0.22687182]
[1735856222215,0.00249153,96952.0,96951.0,0.22687182]
[1735856222414,0.00249153,96952.0,96951.0,1.72687182]
[1735856222619,0.00249153,96952.0,96951.0,1.74242795]
[1735856223041,0.00149153,96952.0,96951.0,1.74242795]
[1735856223247,0.206241,96974.0,96956.0,0.1223]
[1735856223456,0.15,96977.0,96963.0,0.206263]
[1735856223654,0.206236,96976.0,96966.0,0.0771]
[1735856225061,0.213236,96976.0,96966.0,0.0771]
[1735856225472,0.011,96976.0,96967.0,0.31024132]
[1735856225676,0.011,96976.0,96968.0,0.1272]
[1735856225876,0.011,96976.0,96970.0,0.0458]
[1735856226111,0.011,96976.0,96972.0,0.1272]
[1735856226282,0.007,96976.0,96974.0,0.0831]
[1735856226499,0.206221,96983.0,96974.0,0.18708632]
[1735856226639,0.206214,96987.0,96975.0,0.39332432]
[1735856226640,0.15,96986.0,96975.0,0.39332432]
[1735856226847,0.206214,96987.0,96975.0,0.70268632]
[1735856226848,0.15,96984.0,96975.0,0.70268632]
[1735856227619,0.0001712,96977.0,96975.0,0.90892432]
[1735856227810,0.0001712,96977.0,96975.0,0.70268632]
[1735856228009,0.004,96976.0,96975.0,0.70268632]
[1735856228323,0.011,96976.0,96975.0,0.70268632]
[1735856228466,0.0001712,96977.0,96975.0,0.70268632]
[1735856228876,0.0091712,96977.0,96975.0,0.70268632]
[1735856229229,0.0051712,96977.0,96975.0,0.70368632]
[1735856229576,0.009,96976.0,96975.0,0.91092432]
[1735856229772,0.0051712,96977.0,96975.0,0.90992432]
[1735856229980,0.0051712,96977.0,96975.0,0.70368632]
[1735856230201,0.0141312,96977.0,96975.0,0.70468632]
[1735856231037,0.0091312,96977.0,96975.0,0.70368632]
[1735856231249,0.0091312,96977.0,96976.0,0.206236]
[1735856231476,0.0001312,96977.0,96976.0,0.721826]
[1735856232264,0.0051312,96977.0,96976.0,0.798126]
[1735856232464,0.0141312,96977.0,96976.0,0.798126]
[1735856232659,0.0091312,96977.0,96976.0,0.51559]
[1735856233108,0.0151312,96977.0,96976.0,0.51659]
[1735856236311,0.0151312,96977.0,96976.0,0.59829]
[1735856236520,0.0151312,96977.0,96976.0,0.51659]
[1735856239159,0.0091312,96977.0,96976.0,0.51559]
[1735856239330,0.0001312,96977.0,96976.0,0.51659]
[1735856239538,0.0001312,96977.0,96976.0,0.5176756]
[1735856239741,0.0001312,96977.0,96976.0,0.5166756]
[1735856241333,0.0001312,96977.0,96976.0,0.5156756]
[1735856241733,0.0011312,96977.0,96976.0,0.5156756]
[1735856241916,0.0001312,96977.0,96976.0,0.5156756]
[1735856242281,0.0011312,96977.0,96976.0,0.5156756]
[1735856242613,0.0021312,96977.0,96976.0,0.5156756]
[1735856243598,0.0776312,96977.0,96976.0,0.5156756]
[1735856244700,0.0766312,96977.0,96976.0,0.5156756]
[1735856244905,0.0011312,96977.0,96976.0,0.5156756]
[1735856245108,0.0021312,96977.0,96976.0,0.5156756]
[1735856245533,0.0011312,96977.0,96976.0,0.5156756]
[1735856245706,0.0011312,96977.0,96976.0,0.5166756]
[1735856245913,0.0021312,96977.0,96976.0,0.5166756]
[1735856246310,0.0021312,96977.0,96976.0,0.5156756]
[1735856246311,0.0803312,96977.0,96976.0,0.5156756]
[1735856246513,0.0813312,96977.0,96976.0,0.5166756]
[1735856247342,0.0021312,96977.0,96976.0,0.5166756]
[1735856249171,0.0021312,96977.0,96976.0,0.95609792]
[1735856249753,0.0021312,96977.0,96976.0,0.97909792]
[1735856250196,0.0011312,96977.0,96976.0,0.97809792]
[1735856250570,0.0011312,96977.0,96976.0,0.97909792]
[1735856250795,0.0011312,96977.0,96976.0,0.95609792]
[1735856250969,0.0001312,96977.0,96976.0,0.95609792]
[1735856251185,0.0081312,96977.0,96976.0,0.95709792]
[1735856252068,0.0081312,96977.0,96976.0,0.95609792]
[1735856252418,0.0121312,96977.0,96976.0,0.95609792]
[1735856270924,0.0121312,96977.0,96976.0,2.45609792]
[1735856271077,0.0081312,96977.0,96976.0,2.45609792]
[1735856271278,0.0011312,96977.0,96976.0,2.45509792]
[1735856271659,0.0011312,96977.0,96976.0,0.5156756]
[1735856271660,0.2093652,96977.0,96976.0,0.5156756]
[1735856272578,0.2083652,96977.0,96976.0,0.5156756]
[1735856272963,0.2073652,96977.0,96976.0,0.5156756]
[1735856273169,0.2073652,96977.0,96976.0,0.5196756]
[1735856274282,0.2063652,96977.0,96976.0,0.5196756]
[1735856274483,0.2113652,96977.0,96976.0,0.5166756]
[1735856274724,0.2203652,96977.0,96976.0,0.5176756]
[1735856275160,0.0141312,96977.0,96976.0,0.62166192]
[1735856286744,0.4982652,96977.0,96976.0,0.5176756]
[1735856286969,0.62525152,96977.0,96976.0,0.5176756]
[1735856287152,0.73842347,96977.0,96976.0,0.5176756]
[1735856287538,0.83342347,96977.0,96976.0,0.3267036]
[1735856287735,0.75454165,96977.0,96976.0,0.2442076]
[1735856288083,0.74554165,96977.0,96976.0,0.2225836]
[1735856288333,0.84554165,96977.0,96976.0,0.2225836]
[1735856288738,0.84654165,96977.0,96976.0,0.2069596]
[1735856288940,0.84654165,96977.0,96976.0,0.1863356]
[1735856289142,0.84754165,96977.0,96976.0,0.1450876]
[1735856289289,0.84754165,96977.0,96976.0,0.1244636]
[1735856289495,0.1,96975.0,96921.0,0.206353]
[1735856289760,0.206287,96952.0,96921.0,0.206353]
[1735856290146,0.206287,96952.0,96951.0,0.51611167]
[1735856290723,0.206247,96952.0,96951.0,0.51611167]
[1735856291114,0.356247,96952.0,96951.0,0.51611167]
[1735856291313,0.360247,96952.0,96951.0,0.51611167]
[1735856291954,0.359979,96952.0,96951.0,0.51611167]
[1735856292162,0.368979,96952.0,96951.0,0.51611167]
[1735856296383,0.38184818,96952.0,96951.0,0.51611167]
[1735856298251,0.40484818,96952.0,96951.0,0.51611167]
[1735856298867,0.39584818,96952.0,96951.0,0.51611167]
[1735856299564,0.36884818,96952.0,96951.0,0.51611167]
[1735856299762,0.37084818,96952.0,96951.0,0.51611167]
[1735856300315,0.36984818,96952.0,96951.0,0.51611167]
[1735856300469,0.37084818,96952.0,96951.0,0.51611167]
[1735856301079,0.36884818,96952.0,96951.0,0.51611167]
[1735856301447,0.37084818,96952.0,96951.0,0.51611167]
[1735856301598,0.36984818,96952.0,96951.0,0.51611167]
[1735856301923,0.37084818,96952.0,96951.0,0.51611167]
[1735856302573,0.41784818,96952.0,96951.0,0.51611167]
[1735856305782,0.41784818,96952.0,96951.0,0.59261167]
[1735856305783,0.049,96952.0,96951.0,0.59261167]
[1735856305991,0.049,96952.0,96951.0,0.64231167]
[1735856306613,0.048,96952.0,96951.0,0.64231167]
[1735856307398,0.047,96952.0,96951.0,0.64231167]
[1735856307612,0.047,96952.0,96951.0,0.64531167]
[1735856307910,0.052,96952.0,96951.0,0.64231167]
[1735856308121,0.061,96952.0,96951.0,0.64331167]
[1735856309726,0.056171,96952.0,96951.0,0.64331167]
[1735856310132,0.062171,96952.0,96951.0,0.64431167]
[1735856312740,0.062171,96952.0,96951.0,0.95458699]
[1735856313328,0.062171,96952.0,96951.0,0.96782469]
[1735856313529,0.056171,96952.0,96951.0,0.96682469]
[1735856313730,0.052171,96952.0,96951.0,0.96582469]
[1735856313936,0.061171,96952.0,96951.0,0.96682469]
[1735856314153,0.0001312,96977.0,96976.0,0.206236]
[1735856314351,0.0001312,96977.0,96976.0,0.95151232]
[1735856316252,0.0051312,96977.0,96976.0,1.05251232]
[1735856316659,0.0001312,96977.0,96976.0,1.05151232]
[1735856316867,0.0091312,96977.0,96976.0,1.05251232]
[1735856317068,0.0001312,96977.0,96976.0,1.05151232]
[1735856317480,0.0001312,96977.0,96976.0,1.05351232]
[1735856318088,0.0001312,96977.0,96976.0,2.55851232]
[1735856318290,0.0001312,96977.0,96976.0,2.55351232]
[1735856318728,0.0011312,96977.0,96976.0,2.55951232]
[1735856319132,0.0011312,96977.0,96976.0,2.57058847]
[1735856319465,0.0011312,96977.0,96976.0,2.57358847]
[1735856319665,0.0011312,96977.0,96976.0,1.07358847]
[1735856319886,0.0011312,96977.0,96976.0,1.07058847]
[1735856320461,0.0011312,96977.0,96976.0,1.07358847]
[1735856322483,0.0011312,96977.0,96976.0,0.10398632]
[1735856322849,0.0011312,96977.0,96976.0,0.61957632]
[1735856323275,0.0011312,96977.0,96976.0,0.82581232]
[1735856325524,0.0011312,96977.0,96976.0,0.94961232]
[1735856326927,0.0011312,96977.0,96976.0,2.54961232]
[1735856328667,0.0011312,96977.0,96976.0,2.5619845]
[1735856329205,0.0011312,96977.0,96976.0,0.51559]
[1735856329638,0.00618967,96977.0,96976.0,0.51559]
[1735856329851,0.0011312,96977.0,96976.0,0.51559]
[1735856330037,0.00515652,96977.0,96976.0,0.51559]
[1735856330236,0.0051312,96977.0,96976.0,0.51559]
[1735856330482,0.01315657,96977.0,96976.0,0.51559]
[1735856332057,0.44295657,96977.0,96976.0,0.51559]
[1735856332248,0.49075657,96977.0,96976.0,0.51559]
[1735856332798,0.48775657,96977.0,96976.0,0.51559]
[1735856333244,0.48275657,96977.0,96976.0,0.51559]
[1735856334005,0.62289129,96977.0,96976.0,0.51959]
[1735856334155,0.62389129,96977.0,96976.0,0.52859]
[1735856334736,0.62289129,96977.0,96976.0,0.51959]
[1735856335087,0.62189129,96977.0,96976.0,0.51559]
[1735856335499,0.62289129,96977.0,96976.0,0.51559]
[1735856336228,0.62289129,96977.0,96976.0,0.51759]
[1735856336345,0.62389129,96977.0,96976.0,0.51759]
[1735856347569,0.49690497,96977.0,96976.0,0.51759]
[1735856350970,0.62389129,96977.0,96976.0,0.496966]
[1735856351628,0.62385129,96977.0,96976.0,0.496966]
[1735856352706,0.62376124,96977.0,96976.0,0.496966]
[1735856361568,0.60076124,96977.0,96976.0,0.496966]
[1735856361797,0.47316124,96977.0,96976.0,0.496966]
[1735856362158,0.36917492,96977.0,96976.0,0.496966]
[1735856364105,0.26932992,96977.0,96976.0,0.496966]
[1735856364916,0.36932992,96977.0,96976.0,0.496966]
[1735856365896,0.21932992,96977.0,96976.0,0.496966]
[1735856366107,0.10718152,96977.0,96976.0,0.573266]
[1735856366305,0.25718152,96977.0,96976.0,0.573266]
[1735856366934,0.35718152,96977.0,96976.0,0.573266]
[1735856367121,0.25718152,96977.0,96976.0,0.573266]
[1735856367459,0.15718152,96977.0,96976.0,0.573266]
[1735856368298,0.15618152,96977.0,96976.0,0.573266]
[1735856368496,0.25618152,96977.0,96976.0,0.573266]
[1735856368662,0.35618152,96977.0,96976.0,0.573266]
[1735856368863,0.35518152,96977.0,96976.0,0.571266]
[1735856369153,0.25718152,96977.0,96976.0,0.582266]
[1735856369422,0.25618152,96977.0,96976.0,0.573266]
[1735856369831,0.25718152,96977.0,96976.0,0.582266]
[1735856370028,0.15718152,96977.0,96976.0,0.582266]
[1735856370187,0.25718152,96977.0,96976.0,0.582266]
[1735856370407,0.15618152,96977.0,96976.0,0.5803515]
[1735856370610,0.15718152,96977.0,96976.0,0.5863515]
[1735856371446,0.35718152,96977.0,96976.0,0.5100515]
[1735856374341,0.76396784,96977.0,96976.0,0.34765204]
[1735856374516,0.76645663,96977.0,96976.0,0.32848617]
[1735856374723,0.76645663,96977.0,96976.0,5e-07]
[1735856374934,0.2,96966.0,96965.0,8.55e-05]
[1735856375245,0.68796186,96966.0,96965.0,8.55e-05]
[1735856376059,0.82590909,96966.0,96965.0,0.0020855]
[1735856376395,0.82590909,96966.0,96965.0,8.55e-05]
[1735856376605,0.82690909,96966.0,96965.0,0.0060855]
[1735856376943,0.68896186,96966.0,96965.0,0.0060855]
[1735856378753,0.82735245,96966.0,96965.0,0.0060855]
[1735856379307,0.842708,96966.0,96965.0,0.0060855]
[1735856380022,0.86366438,96966.0,96965.0,0.0060855]
[1735856380819,0.72527379,96966.0,96965.0,0.0060855]
[1735856382312,0.80507379,96966.0,96965.0,0.0060855]
[1735856389383,1.03558646,96966.0,96965.0,0.0060855]
[1735856391369,0.80507379,96966.0,96965.0,0.0060855]
[1735856392528,1.03558646,96966.0,96965.0,0.0060855]
[1735856393231,0.80507379,96966.0,96965.0,0.0060855]
[1735856395286,0.80507379,96966.0,96965.0,5e-07]
[1735856395287,1.03558646,96966.0,96965.0,5e-07]
[1735856396326,0.80507379,96966.0,96965.0,5e-07]
[1735856401984,0.90507379,96966.0,96965.0,5e-07]
[1735856402282,0.90507379,96966.0,96951.0,1.7e-07]
[1735856402283,0.579287,96952.0,96951.0,1.7e-07]
[1735856402486,0.68327332,96952.0,96951.0,1.7e-07]
[1735856402717,0.68787476,96952.0,96951.0,1.7e-07]
[1735856404224,0.68887476,96952.0,96951.0,1.7e-07]
[1735856404433,0.82706955,96952.0,96951.0,1.7e-07]
[1735856405621,0.7810001,96952.0,96951.0,1.7e-07]
[1735856406037,0.423,96951.0,96950.0,0.2032347]
[1735856406171,0.423,96951.0,96914.0,8.55e-05]
[1735856406172,0.423,96948.0,96947.0,0.0531141]
[1735856406521,0.75208632,96948.0,96947.0,0.04612033]
[1735856406666,0.75666948,96948.0,96947.0,0.02549033]
[1735856407072,0.35,96935.0,96914.0,8.55e-05]
[1735856407279,0.66030932,96935.0,96914.0,8.55e-05]
[1735856407720,0.68789248,96935.0,96914.0,8.55e-05]
[1735856408493,0.68889248,96935.0,96914.0,8.55e-05]
[1735856412776,0.68885248,96935.0,96914.0,8.55e-05]
[1735856413146,0.70251505,96935.0,96914.0,8.55e-05]
[1735856415504,0.93391505,96935.0,96914.0,8.55e-05]
[1735856415735,0.37296,96921.0,96914.0,8.55e-05]
[1735856415931,0.68329932,96921.0,96914.0,8.55e-05]
[1735856417105,0.68344656,96921.0,96914.0,8.55e-05]